[Event "Sachovy Festival 2019"]
[Site "Prague"]
[Date "2019.06.18"]
[Round "4.2"]
[White "Timman, Jan"]
[Black "Nguyen, Thai Dai Van"]
[Result "0-1"]
[ECO "C42"]
[WhiteElo "2561"]
[BlackElo "2286"]
[Annotator "ChessBase"]
[PlyCount "88"]
[EventDate "2019.06.17"]
[EventType "match"]
[EventCountry "CZE"]
[SourceTitle "playchess.com"]
[Source "ChessBase"]
[SourceQuality "1"]
[TimeControl "1200+10"]

1. e4 {[%emt 0:00:00]} e5 {[%emt 0:00:00]} 2. Nf3 {[%emt 0:00:00]} Nf6 {[%emt 0:00:00]} 3. Nxe5 {[%emt 0:00:04]} d6 {[%emt 0:00:00]} 4. Nf3 {[%emt 0:00:03]} Nxe4 {[%emt 0:00:00]} 5. Qe2 {[%emt 0:00:14]} Qe7 {[%emt 0:00:00]} 6. d3 {[%emt 0:00:04]} Nf6 {[%emt 0:00:02]} 7. Bg5 {[%emt 0:00:07]} Qxe2+ {[%emt 0:02:13]} 8. Bxe2 {[%emt 0:00:04]} Be7 {[%emt 0:00:01]} 9. Nc3 {[%emt 0:00:07]} h6 {[%emt 0:01:20]} 10. Bh4 {[%emt 0:04:38]} Nbd7 {[%emt 0:07:07]} 11. O-O-O {[%emt 0:01:37]} Nf8 {[%emt 0:03:33]} 12. Rhe1 {[%emt 0:04:32]} Ng6 {[%emt 0:00:59]} 13. Bg3 {[%emt 0:01:36]} Nh5 {[%emt 0:00:34]} 14. Nd5 {[%emt 0:00:29]} Nxg3 {[%emt 0:00:51]} 15. hxg3 {[%emt 0:01:09]} Bd8 {[%emt 0:00:02]} 16. d4 {[%emt 0:00:24]} O-O {[%emt 0:01:03]} 17. Bd3 {[%emt 0:00:01]} c6 {[%emt 0:00:03]} 18. Bxg6 {[%emt 0:00:03]} fxg6 {[%emt 0:00:02]} 19. Nf4 {[%emt 0:00:43]} Bf5 {[%emt 0:01:17]} 20. d5 {[%emt 0:01:34]} Bb6 {[%emt 0:00:08]} 21. Nd4 {[%emt 0:00:31]} Bxd4 {[%emt 0:01:02]} 22. Rxd4 {[%emt 0:00:01]} g5 {[%emt 0:00:01]} 23. Ne6 {[%emt 0:00:46]} Bxe6 {[%emt 0:00:04]} 24. dxe6 {[%emt 0:00:09]} Rxf2 {[%emt 0:01:18]} 25. Rxd6 {[%emt 0:00:02]} Rxg2 {[%emt 0:00:45]} 26. Re3 {[%emt 0:00:22]} Re8 {[%emt 0:01:23]} 27. Rd7 {[%emt 0:00:09]} b5 {[%emt 0:00:13]} 28. Rxa7 {[%emt 0:00:16]} h5 {[%emt 0:00:08]} 29. a4 {[%emt 0:00:23]} bxa4 {[%emt 0:00:05]} 30. Rxa4 {[%emt 0:00:03]} Kh7 {[%emt 0:00:32]} 31. Rc4 {[%emt 0:00:15]} Rf2 {[%emt 0:00:07]} 32. b4 {[%emt 0:00:16]} Rf6 {[%emt 0:00:08]} 33. Rxc6 {[%emt 0:00:40]} h4 {[%emt 0:00:01]} 34. g4 {[%emt 0:01:17]} Rf4 {[%emt 0:00:23]} 35. b5 {[%emt 0:00:01]} Rxg4 {[%emt 0:00:02]} 36. b6 {[%emt 0:00:01]} Rg3 {[%emt 0:00:16]} 37. Kd2 {[%emt 0:00:53]} Rg2+ {[%emt 0:00:04]} 38. Kd3 {[%emt 0:00:12]} g4 {[%emt 0:00:01]} 39. b7 {[%emt 0:00:13]} h3 {[%emt 0:00:16]} 40. Rc8 {[%emt 0:01:13]} h2 {[%emt 0:00:01]} 41. Rxe8 {[%emt 0:00:21]} h1=Q {[%emt 0:00:02]} 42. Rh8+ {[%emt 0:00:18]} Kxh8 {[%emt 0:00:01]} 43. b8=Q+ {[%emt 0:00:01]} Kh7 {[%emt 0:00:01]} 44. Qb5 {[%emt 0:00:38]} Qf1+ {[%emt 0:01:11] Kd2} 0-1

[Event "Sachovy Festival 2019"]
[Site "Prague"]
[Date "2019.06.18"]
[Round "5.2"]
[White "Nguyen, Thai Dai Van"]
[Black "Timman, Jan"]
[Result "1/2-1/2"]
[ECO "E15"]
[WhiteElo "2286"]
[BlackElo "2561"]
[Annotator "ChessBase"]
[PlyCount "61"]
[EventDate "2019.06.17"]
[EventType "match"]
[EventCountry "CZE"]
[SourceTitle "playchess.com"]
[Source "ChessBase"]
[SourceQuality "1"]
[TimeControl "1200+10"]

1. d4 {[%emt 0:00:00]} Nf6 {[%emt 0:00:00]} 2. c4 {[%emt 0:00:00]} e6 {[%emt 0:00:00]} 3. Nf3 {[%emt 0:00:00]} b6 {[%emt 0:00:00]} 4. g3 {[%emt 0:00:00]} Ba6 {[%emt 0:00:00]} 5. Qc2 {[%emt 0:00:00]} Bb7 {[%emt 0:00:02]} 6. Bg2 {[%emt 0:00:02]} c5 {[%emt 0:00:01]} 7. d5 {[%emt 0:00:02]} exd5 {[%emt 0:00:03]} 8. cxd5 {[%emt 0:00:01]} Nxd5 {[%emt 0:00:03]} 9. O-O {[%emt 0:00:03]} Be7 {[%emt 0:00:03]} 10. Rd1 {[%emt 0:00:02]} Nc6 {[%emt 0:00:02]} 11. Qa4 {[%emt 0:00:55]} Nf6 {[%emt 0:00:15]} 12. Nh4 {[%emt 0:00:21]} O-O {[%emt 0:00:35]} 13. Nf5 {[%emt 0:00:06]} d5 {[%emt 0:00:12]} 14. Nc3 {[%emt 0:00:03]} Nd4 {[%emt 0:00:06]} 15. Nxd4 {[%emt 0:00:02]} cxd4 {[%emt 0:00:02]} 16. Qxd4 {[%emt 0:01:04]} Bc5 {[%emt 0:01:49]} 17. Qa4 {[%emt 0:03:45]} Qe8 {[%emt 0:01:18]} 18. Qxe8 {[%emt 0:00:03]} Rfxe8 {[%emt 0:00:06]} 19. e3 {[%emt 0:00:07]} Rac8 {[%emt 0:06:13]} 20. Bd2 {[%emt 0:01:41]} Bd6 {[%emt 0:01:51]} 21. Nb5 {[%emt 0:06:17]} Be5 {[%emt 0:00:40]} 22. Bc3 {[%emt 0:00:34]} Bxc3 {[%emt 0:00:18]} 23. Nxc3 {[%emt 0:00:01]} Rc5 {[%emt 0:00:01]} 24. Rd4 {[%emt 0:00:56]} Ne4 {[%emt 0:00:55]} 25. Bxe4 {[%emt 0:01:05]} dxe4 {[%emt 0:00:02]} 26. Rad1 {[%emt 0:00:04]} Kf8 {[%emt 0:01:09]} 27. Rd7 {[%emt 0:00:46]} Re7 {[%emt 0:00:08]} 28. Rd8+ {[%emt 0:00:21]} Re8 {[%emt 0:00:01]} 29. R8d7 {[%emt 0:00:49]} Re7 {[%emt 0:00:02]} 30. Rd8+ {[%emt 0:02:22]} Re8 {[%emt 0:00:02]} 31. R8d7 {[%emt 0:00:02]} 1/2-1/2

[Event "Sachovy Festival 2019"]
[Site "Prague"]
[Date "2019.06.18"]
[Round "6.2"]
[White "Timman, Jan"]
[Black "Nguyen, Thai Dai Van"]
[Result "1/2-1/2"]
[ECO "C42"]
[WhiteElo "2561"]
[BlackElo "2286"]
[Annotator "RC"]
[PlyCount "88"]
[EventDate "2019.06.17"]
[EventType "match"]
[EventCountry "CZE"]
[SourceTitle "playchess.com"]
[Source "ChessBase"]
[SourceQuality "1"]
[TimeControl "1200+10"]

1. e4 {[%emt 0:00:00]} e5 {[%emt 0:00:00]} 2. Nf3 {[%emt 0:00:00]} Nf6 {[%emt 0:00:00]} 3. Nxe5 {[%emt 0:00:00]} d6 {[%emt 0:00:00]} 4. Nf3 {[%emt 0:00:01]} Nxe4 {[%emt 0:00:00]} 5. Qe2 {[%emt 0:00:02]} Qe7 {[%emt 0:00:00]} 6. d3 {[%emt 0:00:03]} Nf6 {[%emt 0:00:00]} 7. Bg5 {[%emt 0:00:03]} Qxe2+ {[%emt 0:00:04]} 8. Bxe2 {[%emt 0:00:03]} Be7 {[%emt 0:00:02]} 9. Nc3 {[%emt 0:00:03]} h6 {[%emt 0:00:04]} 10. Bh4 {[%emt 0:00:06]} Be6 {[%emt 0:00:39]} 11. Nd4 {[%emt 0:00:49]} Nc6 {[%emt 0:00:01]} 12. Nxc6 {[%emt 0:03:07]} bxc6 {[%emt 0:00:02]} 13. Bf3 {[%emt 0:00:55]} Kd7 {[%emt 0:01:39]} 14. O-O-O {[%emt 0:00:28]} Rab8 {[%emt 0:00:35]} 15. Rhe1 {[%emt 0:01:27]} g5 {[%emt 0:03:53]} 16. Bg3 {[%emt 0:00:02]} Nd5 {[%emt 0:00:11]} 17. Ne2 {[%emt 0:02:46]} c5 {[%emt 0:07:41]} 18. c4 {[%emt 0:00:27]} Nb6 {[%emt 0:01:24]} 19. Bh5 {[%emt 0:01:53]} f5 {[%emt 0:00:53]} 20. f4 {[%emt 0:00:04]} Bf6 {[%emt 0:00:01]} 21. b3 {[%emt 0:00:04]} Rbf8 {[%emt 0:03:23]} 22. d4 {[%emt 0:00:33]} cxd4 {[%emt 0:00:01]} 23. Nxd4 {[%emt 0:00:01]} Bf7 {[%emt 0:00:51]} 24. Bxf7 {[%emt 0:02:26]} Rxf7 {[%emt 0:00:02]} 25. fxg5 {[%emt 0:02:08]} Bxg5+ {[%emt 0:01:39]} 26. Kc2 {[%emt 0:00:02]} Rg8 {[%emt 0:00:12]} 27. c5 {[%emt 0:01:03]} dxc5 {[%emt 0:00:31]} 28. Nxf5+ {[%emt 0:00:03]} Kc6 {[%emt 0:00:02]} 29. Re6+ {[%emt 0:00:35]} Kb7 {[%emt 0:00:09]} 30. Nxh6 {[%emt 0:00:02]} Bxh6 {[%emt 0:00:02]} 31. Rxh6 {[%emt 0:00:02]} c4 {[%emt 0:00:03]} 32. Rh5 {[%emt 0:01:38]} cxb3+ {[%emt 0:00:11]} 33. axb3 {[%emt 0:00:02]} c6 {[%emt 0:00:06]} 34. b4 {[%emt 0:00:39]} Nd5 {[%emt 0:00:05]} 35. Rd4 {[%emt 0:00:47]} Ne3+ {[%emt 0:00:01]} 36. Kd3 {[%emt 0:00:34]} Nf5 {[%emt 0:00:21]} 37. Rf4 {[%emt 0:01:24]} Rd7+ {[%emt 0:00:02]} 38. Kc4 {[%emt 0:00:06]} Nxg3 {[%emt 0:00:34]} 39. hxg3 {[%emt 0:00:01]} Rxg3 {[%emt 0:00:03]} 40. b5 {[%emt 0:00:14]} Rc7 {[%emt 0:00:39]} 41. Kb4 {[%emt 0:00:44]} c5+ {[%emt 0:00:14]} 42. Rxc5 {[%emt 0:00:11]} Rxc5 {[%emt 0:00:02]} 43. Kxc5 {[%emt 0:00:01]} Rg5+ {[%emt 0:00:01]} 44. Kb4 {[%emt 0:00:04]} Rxg2 {[%emt 0:00:01]} 1/2-1/2

[Event "Sachovy Festival 2019"]
[Site "Prague"]
[Date "2019.06.19"]
[Round "8.2"]
[White "Timman, Jan H"]
[Black "Nguyen, Thai Dai Van"]
[Result "0-1"]
[ECO "A14"]
[WhiteElo "2549"]
[BlackElo "2529"]
[Annotator "ChessBase"]
[PlyCount "128"]
[EventDate "2019.06.17"]
[EventType "match"]
[EventCountry "CZE"]
[SourceTitle "playchess.com"]
[Source "ChessBase"]
[SourceQuality "1"]
[TimeControl "1200+10"]

1. c4 {[%emt 0:00:00]} Nf6 {[%emt 0:00:00]} 2. g3 {[%emt 0:00:00]} e6 {[%emt 0:00:00]} 3. Nf3 {[%emt 0:00:05]} d5 {[%emt 0:00:03]} 4. b3 {[%emt 0:00:07]} Be7 {[%emt 0:00:10]} 5. Bb2 {[%emt 0:00:11]} O-O {[%emt 0:00:08]} 6. Bg2 {[%emt 0:00:03]} c5 {[%emt 0:00:18]} 7. O-O {[%emt 0:01:24]} Nc6 {[%emt 0:00:02]} 8. e3 {[%emt 0:01:06]} b6 {[%emt 0:00:15]} 9. Nc3 {[%emt 0:00:38]} Ba6 {[%emt 0:00:07]} 10. d3 {[%emt 0:00:10]} Rc8 {[%emt 0:00:59]} 11. Qe2 {[%emt 0:01:34]} Qc7 {[%emt 0:01:15]} 12. Nb5 {[%emt 0:00:56]} Qb8 {[%emt 0:00:32]} 13. e4 {[%emt 0:00:10]} dxe4 {[%emt 0:09:47]} 14. dxe4 {[%emt 0:00:02]} e5 {[%emt 0:00:01]} 15. Nc3 {[%emt 0:02:59]} Nd4 {[%emt 0:00:16]} 16. Qd1 {[%emt 0:00:12]} Rfd8 {[%emt 0:00:45]} 17. Nd5 {[%emt 0:00:08]} Nxd5 {[%emt 0:00:03]} 18. exd5 {[%emt 0:00:02]} b5 {[%emt 0:00:22]} 19. Re1 {[%emt 0:00:26]} Bf6 {[%emt 0:01:59]} 20. Bh3 {[%emt 0:00:53]} bxc4 {[%emt 0:03:13]} 21. Bxc8 {[%emt 0:00:04]} Rxc8 {[%emt 0:00:20]} 22. Nd2 {[%emt 0:01:22]} cxb3 {[%emt 0:00:09]} 23. axb3 {[%emt 0:00:02]} Bb7 {[%emt 0:00:29]} 24. Ne4 {[%emt 0:01:54]} Bxd5 {[%emt 0:00:02]} 25. Nxf6+ {[%emt 0:00:33]} gxf6 {[%emt 0:00:01]} 26. Bxd4 {[%emt 0:00:21]} cxd4 {[%emt 0:00:02]} 27. Qg4+ {[%emt 0:00:23]} Kh8 {[%emt 0:00:07]} 28. Qf5 {[%emt 0:00:12]} Kg7 {[%emt 0:00:15]} 29. Qg4+ {[%emt 0:00:02]} Kh8 {[%emt 0:00:01]} 30. Ra6 {[%emt 0:02:58]} Be6 {[%emt 0:00:16]} 31. Qf3 {[%emt 0:00:01]} Kg7 {[%emt 0:00:19]} 32. h4 {[%emt 0:00:17]} Rc3 {[%emt 0:01:20]} 33. Qe4 {[%emt 0:00:02]} Rxb3 {[%emt 0:00:20]} 34. h5 {[%emt 0:00:54]} Qb7 {[%emt 0:00:38]} 35. Qxb7 {[%emt 0:00:55]} Rxb7 {[%emt 0:00:01]} 36. f4 {[%emt 0:00:01]} exf4 {[%emt 0:00:30]} 37. gxf4 {[%emt 0:00:03]} d3 {[%emt 0:00:26]} 38. Kf2 {[%emt 0:00:18]} Rb5 {[%emt 0:00:29]} 39. Ke3 {[%emt 0:00:40]} Rxh5 {[%emt 0:00:02]} 40. Kxd3 {[%emt 0:00:16]} Rh3+ {[%emt 0:00:02]} 41. Kd4 {[%emt 0:00:09]} h5 {[%emt 0:00:09]} 42. Rxa7 {[%emt 0:00:10]} Kg6 {[%emt 0:00:02]} 43. Ra5 {[%emt 0:00:10]} Rg3 {[%emt 0:00:16]} 44. Ke4 {[%emt 0:00:33]} Bg4 {[%emt 0:00:06]} 45. Re3 {[%emt 0:00:33]} Rg1 {[%emt 0:00:15]} 46. Ra8 {[%emt 0:00:11]} Kg7 {[%emt 0:00:16]} 47. Rb3 {[%emt 0:00:15]} Re1+ {[%emt 0:00:06]} 48. Re3 {[%emt 0:00:05]} Rf1 {[%emt 0:00:06]} 49. Rg3 {[%emt 0:00:11]} f5+ {[%emt 0:00:13]} 50. Ke3 {[%emt 0:00:01]} h4 {[%emt 0:00:02]} 51. Rg2 {[%emt 0:00:01]} Rf3+ {[%emt 0:00:04]} 52. Kd2 {[%emt 0:00:04]} h3 {[%emt 0:00:04]} 53. Rh2 {[%emt 0:00:01]} Rxf4 {[%emt 0:00:02]} 54. Ra3 {[%emt 0:00:05]} Re4 {[%emt 0:00:16]} 55. Re3 {[%emt 0:00:04]} Kg6 {[%emt 0:00:02]} 56. Kd3 {[%emt 0:00:21]} Ra4 {[%emt 0:00:05]} 57. Re8 {[%emt 0:01:02]} Kg5 {[%emt 0:00:03]} 58. Ke3 {[%emt 0:00:10]} Ra3+ {[%emt 0:00:04]} 59. Kf2 {[%emt 0:00:02]} Kf4 {[%emt 0:00:24]} 60. Rb8 {[%emt 0:00:27]} Rf3+ {[%emt 0:00:06]} 61. Kg1 {[%emt 0:00:02]} Kg3 {[%emt 0:00:03]} 62. Rhb2 {[%emt 0:01:23]} f4 {[%emt 0:00:19]} 63. Rd2 {[%emt 0:00:53]} Re3 {[%emt 0:00:10]} 64. Rb1 {[%emt 0:00:03]} Be2 {[%emt 0:00:15]} 0-1

[Event "Sachovy Festival 2019"]
[Site "Prague"]
[Date "2019.06.19"]
[Round "9.2"]
[White "Nguyen, Thai Dai Van"]
[Black "Timman, Jan H"]
[Result "1-0"]
[ECO "B07"]
[WhiteElo "2529"]
[BlackElo "2549"]
[Annotator "ChessBase"]
[PlyCount "71"]
[EventDate "2019.06.17"]
[EventType "match"]
[EventCountry "CZE"]
[SourceTitle "playchess.com"]
[Source "ChessBase"]
[SourceQuality "1"]
[TimeControl "1200+10"]

1. d4 {[%emt 0:00:00]} d6 {[%emt 0:00:03]} 2. e4 {[%emt 0:00:26]} Nf6 {[%emt 0:00:10]} 3. Nc3 {[%emt 0:00:02]} g6 {[%emt 0:00:02]} 4. Bg5 {[%emt 0:01:53]} Bg7 {[%emt 0:00:07]} 5. Qd2 {[%emt 0:00:02]} h6 {[%emt 0:00:10]} 6. Bf4 {[%emt 0:00:56]} g5 {[%emt 0:01:34]} 7. Bg3 {[%emt 0:00:01]} Nh5 {[%emt 0:00:02]} 8. O-O-O {[%emt 0:00:34]} c6 {[%emt 0:00:06]} 9. Be2 {[%emt 0:00:55]} Nxg3 {[%emt 0:00:04]} 10. hxg3 {[%emt 0:00:02]} b5 {[%emt 0:00:31]} 11. f4 {[%emt 0:01:21]} b4 {[%emt 0:00:44]} 12. Nb1 {[%emt 0:00:54]} gxf4 {[%emt 0:03:08]} 13. gxf4 {[%emt 0:00:02]} Qa5 {[%emt 0:00:02]} 14. a3 {[%emt 0:00:48]} Na6 {[%emt 0:00:29]} 15. Bxa6 {[%emt 0:01:29]} Qxa6 {[%emt 0:00:01]} 16. Qxb4 {[%emt 0:00:57]} c5 {[%emt 0:01:28]} 17. dxc5 {[%emt 0:00:18]} dxc5 {[%emt 0:00:02]} 18. Qd2 {[%emt 0:02:08]} O-O {[%emt 0:00:21]} 19. Nf3 {[%emt 0:00:47]} Rb8 {[%emt 0:00:32]} 20. e5 {[%emt 0:00:02]} Rb6 {[%emt 0:03:33]} 21. Qc3 {[%emt 0:00:25]} Be6 {[%emt 0:00:02]} 22. Rd2 {[%emt 0:02:47]} Rfb8 {[%emt 0:01:47]} 23. Rhd1 {[%emt 0:00:01]} Rxb2 {[%emt 0:00:28]} 24. Rd8+ {[%emt 0:01:38]} Bf8 {[%emt 0:01:06]} 25. Qxb2 {[%emt 0:01:11]} Rxb2 {[%emt 0:00:02]} 26. Kxb2 {[%emt 0:00:02]} Qb5+ {[%emt 0:00:41]} 27. Kc1 {[%emt 0:00:16]} Bf5 {[%emt 0:00:29]} 28. Nc3 {[%emt 0:00:44]} Qa5 {[%emt 0:01:05]} 29. Kb2 {[%emt 0:00:08]} Qb6+ {[%emt 0:01:54]} 30. Kc1 {[%emt 0:00:01]} Qa5 {[%emt 0:00:01]} 31. Kb2 {[%emt 0:00:01]} Qb6+ {[%emt 0:00:16]} 32. Kc1 {[%emt 0:00:01]} f6 {[%emt 0:00:01]} 33. Nd5 {[%emt 0:01:00]} Qe6 {[%emt 0:00:01]} 34. exf6 {[%emt 0:00:22]} exf6 {[%emt 0:00:12]} 35. Re1 {[%emt 0:00:04]} Be4 {[%emt 0:00:05]} 36. Rxe4 {[%emt 0:00:03]} 1-0

[Event "Sachovy Festival 2019"]
[Site "Prague"]
[Date "2019.06.19"]
[Round "10.2"]
[White "Timman, Jan H"]
[Black "Nguyen, Thai Dai Van"]
[Result "0-1"]
[ECO "A14"]
[WhiteElo "2549"]
[BlackElo "2529"]
[Annotator "ChessBase"]
[PlyCount "60"]
[EventDate "2019.06.17"]
[EventType "match"]
[EventCountry "CZE"]
[SourceTitle "playchess.com"]
[Source "ChessBase"]
[SourceQuality "1"]
[TimeControl "1200+10"]

1. c4 {[%emt 0:00:00]} Nf6 {[%emt 0:00:00]} 2. Nf3 {[%emt 0:00:00]} e6 {[%emt 0:00:08]} 3. g3 {[%emt 0:00:00]} d5 {[%emt 0:00:02]} 4. b3 {[%emt 0:00:02]} Be7 {[%emt 0:00:02]} 5. Bb2 {[%emt 0:00:03]} O-O {[%emt 0:00:02]} 6. Bg2 {[%emt 0:00:02]} c5 {[%emt 0:00:02]} 7. O-O {[%emt 0:00:03]} Nc6 {[%emt 0:00:02]} 8. e3 {[%emt 0:00:05]} b6 {[%emt 0:00:01]} 9. Nc3 {[%emt 0:00:02]} Ba6 {[%emt 0:00:02]} 10. d3 {[%emt 0:00:02]} Rc8 {[%emt 0:00:02]} 11. Qe2 {[%emt 0:00:03]} Qc7 {[%emt 0:00:01]} 12. Nb5 {[%emt 0:00:07]} Qb8 {[%emt 0:00:04]} 13. Rad1 {[%emt 0:00:31]} Rfd8 {[%emt 0:00:35]} 14. Bh3 {[%emt 0:00:23]} Bb7 {[%emt 0:00:24]} 15. g4 {[%emt 0:00:58]} a6 {[%emt 0:00:37]} 16. g5 {[%emt 0:00:03]} axb5 {[%emt 0:01:01]} 17. gxf6 {[%emt 0:00:03]} Bxf6 {[%emt 0:00:02]} 18. Bxf6 {[%emt 0:00:07]} gxf6 {[%emt 0:00:02]} 19. cxb5 {[%emt 0:01:38]} Ne7 {[%emt 0:00:14]} 20. d4 {[%emt 0:00:36]} Kh8 {[%emt 0:00:13]} 21. Kh1 {[%emt 0:00:07]} Rg8 {[%emt 0:01:29]} 22. Nh4 {[%emt 0:01:19]} cxd4 {[%emt 0:00:21]} 23. Qf3 {[%emt 0:00:47]} Qe5 {[%emt 0:01:40]} 24. exd4 {[%emt 0:00:11]} Qe4 {[%emt 0:00:08]} 25. Qxe4 {[%emt 0:01:26]} dxe4 {[%emt 0:00:02]} 26. Ng2 {[%emt 0:00:01]} f5 {[%emt 0:00:08]} 27. Rfe1 {[%emt 0:01:54]} Nd5 {[%emt 0:01:06]} 28. Rd2 {[%emt 0:00:15]} Rc3 {[%emt 0:00:07]} 29. Ne3 {[%emt 0:00:04]} f4 {[%emt 0:00:03]} 30. Nxd5 {[%emt 0:00:09]} Bxd5 {[%emt 0:00:06]} 0-1